[Event "Late-Titled-Tuesday-Blitz-March-19-2024"]
[Site "Chess.com"]
[Date "2024.03.19"]
[Round "1"]
[White "DavidGavrilescu18"]
[Black "Aram7Adam"]
[Result "1-0"]
[WhiteElo "2760"]
[BlackElo "2440"]
[TimeControl "180+1"]
[EndTime "14:04:25 PDT"]
[Termination "DavidGavrilescu18 won by checkmate"]

1. e4 {[%clk 0:03:00.9]} 1... c5 {[%clk 0:02:59.6]} 2. Nf3 {[%clk 0:03:00.5]}
2... Nc6 {[%clk 0:02:59.9]} 3. Bb5 {[%clk 0:02:59.8]} 3... e6 {[%clk 0:02:59.9]}
4. O-O {[%clk 0:02:58]} 4... Nge7 {[%clk 0:02:59.8]} 5. d4 {[%clk 0:02:58.6]}
5... cxd4 {[%clk 0:02:58]} 6. Nxd4 {[%clk 0:02:59.5]} 6... Qb6 {[%clk
0:02:58.5]} 7. Bxc6 {[%clk 0:02:59.2]} 7... Nxc6 {[%clk 0:02:53.9]} 8. Nxc6
{[%clk 0:02:55.8]} 8... bxc6 {[%clk 0:02:50.2]} 9. c4 {[%clk 0:02:55.7]} 9...
Be7 {[%clk 0:02:48.1]} 10. Nc3 {[%clk 0:02:55.3]} 10... O-O {[%clk 0:02:47.9]}
11. Rb1 {[%clk 0:02:55.6]} 11... e5 {[%clk 0:02:38.7]} 12. Be3 {[%clk
0:02:54.4]} 12... Qa5 {[%clk 0:02:32.4]} 13. Qd2 {[%clk 0:02:46.4]} 13... Bb4
{[%clk 0:02:25.1]} 14. Rfc1 {[%clk 0:02:42.6]} 14... Bxc3 {[%clk 0:01:47.7]} 15.
Rxc3 {[%clk 0:02:43.5]} 15... Qxa2 {[%clk 0:01:46.9]} 16. Rbc1 {[%clk
0:02:39.1]} 16... Qa5 {[%clk 0:01:46.4]} 17. h4 {[%clk 0:02:32.9]} 17... Rb8
{[%clk 0:01:44.4]} 18. h5 {[%clk 0:02:29.1]} 18... f5 {[%clk 0:01:37.2]} 19.
exf5 {[%clk 0:02:08.5]} 19... d5 {[%clk 0:01:36.1]} 20. cxd5 {[%clk 0:02:07.8]}
20... cxd5 {[%clk 0:01:36.2]} 21. Bh6 {[%clk 0:02:03.4]} 21... Bxf5 {[%clk
0:01:21]} 22. Bxg7 {[%clk 0:02:00.4]} 22... Kxg7 {[%clk 0:01:16.7]} 23. Rg3+
{[%clk 0:01:58.6]} 23... Kh8 {[%clk 0:01:15]} 24. Qxa5 {[%clk 0:01:58.1]} 24...
Rxb2 {[%clk 0:00:56.7]} 25. Qc7 {[%clk 0:01:56]} 25... Re2 {[%clk 0:00:51.6]}
26. Qg7# {[%clk 0:01:53.8]} 1-0

[Event "Late-Titled-Tuesday-Blitz-March-19-2024"]
[Site "Chess.com"]
[Date "2024.03.19"]
[Round "1"]
[White "ValeriyGrinev"]
[Black "JaackCamel"]
[Result "1-0"]
[WhiteElo "2608"]
[BlackElo "2207"]
[TimeControl "180+1"]
[EndTime "14:04:28 PDT"]
[Termination "ValeriyGrinev won by resignation"]

1. d4 {[%clk 0:02:59.8]} 1... d5 {[%clk 0:02:59.3]} 2. c4 {[%clk 0:02:58.7]}
2... e6 {[%clk 0:02:59]} 3. Nc3 {[%clk 0:02:58.6]} 3... c6 {[%clk 0:02:58.5]} 4.
e4 {[%clk 0:02:58]} 4... dxe4 {[%clk 0:02:57.8]} 5. Nxe4 {[%clk 0:02:58.1]} 5...
Bb4+ {[%clk 0:02:56.9]} 6. Bd2 {[%clk 0:02:57.9]} 6... Qxd4 {[%clk 0:02:56]} 7.
Bxb4 {[%clk 0:02:58]} 7... Qxe4+ {[%clk 0:02:55.5]} 8. Ne2 {[%clk 0:02:58.7]}
8... Na6 {[%clk 0:02:53.2]} 9. Bf8 {[%clk 0:02:56.4]} 9... Ne7 {[%clk
0:02:49.2]} 10. Bxg7 {[%clk 0:02:55]} 10... Nb4 {[%clk 0:02:48.1]} 11. Qd6
{[%clk 0:02:53.1]} 11... Nc2+ {[%clk 0:02:40.8]} 12. Kd2 {[%clk 0:02:42.2]}
12... Nf5 {[%clk 0:02:37.5]} 13. Qd3 {[%clk 0:02:21.8]} 13... Qxd3+ {[%clk
0:02:20.5]} 14. Kxd3 {[%clk 0:02:22.7]} 14... Nb4+ {[%clk 0:02:12]} 15. Kc3
{[%clk 0:02:19.3]} 15... Nxg7 {[%clk 0:02:00.8]} 16. Kxb4 {[%clk 0:02:18.8]}
16... Ke7 {[%clk 0:01:45]} 17. Ng3 {[%clk 0:02:16.4]} 17... e5 {[%clk
0:01:36.9]} 18. Re1 {[%clk 0:02:11.6]} 18... f6 {[%clk 0:01:32.7]} 19. f4 {[%clk
0:02:10.8]} 19... a5+ {[%clk 0:01:22.3]} 20. Kc3 {[%clk 0:02:10.4]} 20... Be6
{[%clk 0:01:04]} 21. fxe5 {[%clk 0:02:09.9]} 21... fxe5 {[%clk 0:01:03.6]} 22.
Rxe5 {[%clk 0:02:07.4]} 22... Kf6 {[%clk 0:01:00]} 23. Re3 {[%clk 0:02:04.7]}
23... h5 {[%clk 0:00:53.9]} 24. Bd3 {[%clk 0:02:04.8]} 24... h4 {[%clk 0:00:52]}
25. Rf1+ {[%clk 0:02:05.3]} 25... Ke7 {[%clk 0:00:47.4]} 26. Nf5+ {[%clk
0:02:05.5]} 26... Nxf5 {[%clk 0:00:42.6]} 27. Bxf5 {[%clk 0:02:06.4]} 27... Rh6
{[%clk 0:00:42.5]} 28. Rfe1 {[%clk 0:02:06.6]} 1-0

[Event "Late-Titled-Tuesday-Blitz-March-19-2024"]
[Site "Chess.com"]
[Date "2024.03.19"]
[Round "1"]
[White "ATM622"]
[Black "AlexeiShirov"]
[Result "1-0"]
[WhiteElo "2511"]
[BlackElo "2830"]
[TimeControl "180+1"]
[EndTime "14:04:30 PDT"]
[Termination "ATM622 won by resignation"]

1. d4 {[%clk 0:03:00.9]} 1... d5 {[%clk 0:02:59.3]} 2. c4 {[%clk 0:03:00.6]}
2... c6 {[%clk 0:02:58.9]} 3. Nf3 {[%clk 0:03:00.5]} 3... Nf6 {[%clk 0:02:58.1]}
4. Nbd2 {[%clk 0:03:00.3]} 4... Bf5 {[%clk 0:02:38.9]} 5. Nh4 {[%clk 0:03:00.1]}
5... Bg6 {[%clk 0:02:34.6]} 6. Qb3 {[%clk 0:02:59.7]} 6... Qb6 {[%clk
0:02:30.9]} 7. Qh3 {[%clk 0:02:59.5]} 7... Na6 {[%clk 0:02:07.6]} 8. Nxg6 {[%clk
0:02:57]} 8... fxg6 {[%clk 0:02:06.9]} 9. e3 {[%clk 0:02:57.1]} 9... Nb4 {[%clk
0:02:05.3]} 10. Kd1 {[%clk 0:02:55.5]} 10... a5 {[%clk 0:02:01.6]} 11. c5 {[%clk
0:02:51.2]} 11... Qc7 {[%clk 0:02:00.7]} 12. Qg3 {[%clk 0:02:50.6]} 12... Qd7
{[%clk 0:01:57.7]} 13. f3 {[%clk 0:02:48.9]} 13... e6 {[%clk 0:01:55.3]} 14. a3
{[%clk 0:02:47.9]} 14... Na6 {[%clk 0:01:53.9]} 15. Bxa6 {[%clk 0:02:44.4]}
15... Rxa6 {[%clk 0:01:51.6]} 16. Qb8+ {[%clk 0:02:42.9]} 16... Kf7 {[%clk
0:01:50.8]} 17. f4 {[%clk 0:02:33.7]} 17... Kg8 {[%clk 0:00:44.8]} 18. Nf3
{[%clk 0:02:33.4]} 18... Ng4 {[%clk 0:00:37]} 19. Rf1 {[%clk 0:02:28.4]} 19...
e5 {[%clk 0:00:24.5]} 20. h3 {[%clk 0:02:25.6]} 20... e4 {[%clk 0:00:22]} 21.
Ne5 {[%clk 0:02:22.3]} 21... Nxe5 {[%clk 0:00:20.1]} 22. fxe5 {[%clk 0:02:23.2]}
22... Qe7 {[%clk 0:00:19.9]} 23. e6 {[%clk 0:02:22.5]} 23... h6 {[%clk 0:00:18]}
24. Rf7 {[%clk 0:02:22.1]} 1-0

[Event "Late-Titled-Tuesday-Blitz-March-19-2024"]
[Site "Chess.com"]
[Date "2024.03.19"]
[Round "1"]
[White "Evgeny81"]
[Black "KetiTsatsalashvili"]
[Result "1-0"]
[WhiteElo "2785"]
[BlackElo "2462"]
[TimeControl "180+1"]
[EndTime "14:04:32 PDT"]
[Termination "Evgeny81 won by resignation"]

1. e4 {[%clk 0:02:54.6]} 1... c5 {[%clk 0:02:59]} 2. Nf3 {[%clk 0:02:53.8]} 2...
d6 {[%clk 0:02:59]} 3. Bb5+ {[%clk 0:02:54.1]} 3... Bd7 {[%clk 0:02:58.5]} 4.
Bxd7+ {[%clk 0:02:54.2]} 4... Nxd7 {[%clk 0:02:59.2]} 5. O-O {[%clk 0:02:54.6]}
5... Ngf6 {[%clk 0:02:57.9]} 6. Re1 {[%clk 0:02:55]} 6... e6 {[%clk 0:02:58.3]}
7. b3 {[%clk 0:02:55.2]} 7... Be7 {[%clk 0:02:58]} 8. Bb2 {[%clk 0:02:55.8]}
8... O-O {[%clk 0:02:58.3]} 9. c4 {[%clk 0:02:56.4]} 9... e5 {[%clk 0:02:57.4]}
10. Nc3 {[%clk 0:02:55.6]} 10... g6 {[%clk 0:02:56.8]} 11. d3 {[%clk 0:02:55.8]}
11... Nh5 {[%clk 0:02:56.8]} 12. Nd5 {[%clk 0:02:54.6]} 12... Bf6 {[%clk
0:02:55.4]} 13. b4 {[%clk 0:02:51.5]} 13... b6 {[%clk 0:02:51.6]} 14. a4 {[%clk
0:02:49.7]} 14... a5 {[%clk 0:02:48.9]} 15. bxa5 {[%clk 0:02:47.3]} 15... bxa5
{[%clk 0:02:47.5]} 16. Bc3 {[%clk 0:02:46]} 16... Bg7 {[%clk 0:02:47.3]} 17. Rb1
{[%clk 0:02:42]} 17... Nf4 {[%clk 0:02:41.7]} 18. Rb7 {[%clk 0:02:35.2]} 18...
Nf6 {[%clk 0:02:29.8]} 19. Nxf4 {[%clk 0:02:22.8]} 19... exf4 {[%clk 0:02:29.3]}
20. Qa1 {[%clk 0:02:22]} 20... Nh5 {[%clk 0:02:27.2]} 21. Reb1 {[%clk
0:02:15.7]} 21... g5 {[%clk 0:02:22.1]} 22. h3 {[%clk 0:02:12]} 22... h6 {[%clk
0:02:17.1]} 23. Bxg7 {[%clk 0:02:02]} 23... Nxg7 {[%clk 0:02:16]} 24. e5 {[%clk
0:02:02.5]} 24... Ne6 {[%clk 0:02:14]} 25. exd6 {[%clk 0:01:58.4]} 25... Qxd6
{[%clk 0:02:14.9]} 26. Qf6 {[%clk 0:01:57.7]} 26... Kh7 {[%clk 0:02:11.1]} 27.
Rxf7+ {[%clk 0:01:55.8]} 27... Rxf7 {[%clk 0:02:10.3]} 28. Qxf7+ {[%clk
0:01:56.3]} 28... Ng7 {[%clk 0:02:10.6]} 29. Rb7 {[%clk 0:01:53.7]} 29... Rg8
{[%clk 0:02:10.7]} 30. Rd7 {[%clk 0:01:39.4]} 30... Qg6 {[%clk 0:02:07.3]} 31.
Qd5 {[%clk 0:01:33.6]} 31... Qf6 {[%clk 0:01:59.9]} 32. Qxc5 {[%clk 0:01:25.3]}
32... Rd8 {[%clk 0:01:59.4]} 33. Rxd8 {[%clk 0:01:18.5]} 33... Qxd8 {[%clk
0:02:00.3]} 34. d4 {[%clk 0:01:17.7]} 34... Ne6 {[%clk 0:01:52.2]} 35. Qf5+
{[%clk 0:01:17]} 1-0

[Event "Late-Titled-Tuesday-Blitz-March-19-2024"]
[Site "Chess.com"]
[Date "2024.03.19"]
[Round "1"]
[White "CM_rui"]
[Black "Masterisback04"]
[Result "0-1"]
[WhiteElo "2560"]
[BlackElo "1924"]
[TimeControl "180+1"]
[EndTime "14:04:40 PDT"]
[Termination "Masterisback04 won by checkmate"]

1. e4 {[%clk 0:02:54.7]} 1... c5 {[%clk 0:02:59.3]} 2. Nf3 {[%clk 0:02:55.6]}
2... Nc6 {[%clk 0:02:58.2]} 3. c4 {[%clk 0:02:53.3]} 3... g6 {[%clk 0:02:58]} 4.
d4 {[%clk 0:02:53.4]} 4... cxd4 {[%clk 0:02:57.5]} 5. Nxd4 {[%clk 0:02:54.3]}
5... Bg7 {[%clk 0:02:57.9]} 6. Be3 {[%clk 0:02:54.6]} 6... Nf6 {[%clk
0:02:56.8]} 7. Nc3 {[%clk 0:02:55.4]} 7... O-O {[%clk 0:02:56.6]} 8. Be2 {[%clk
0:02:55.8]} 8... d6 {[%clk 0:02:53.9]} 9. O-O {[%clk 0:02:56]} 9... Bd7 {[%clk
0:02:52.8]} 10. Rc1 {[%clk 0:02:56.3]} 10... Nxd4 {[%clk 0:02:52.1]} 11. Bxd4
{[%clk 0:02:56.7]} 11... Bc6 {[%clk 0:02:52.3]} 12. f3 {[%clk 0:02:57.3]} 12...
Nd7 {[%clk 0:02:37.6]} 13. Bxg7 {[%clk 0:02:57.3]} 13... Kxg7 {[%clk 0:02:37.8]}
14. Kh1 {[%clk 0:02:56.6]} 14... a5 {[%clk 0:02:33.8]} 15. b3 {[%clk 0:02:49.2]}
15... h5 {[%clk 0:02:28.6]} 16. f4 {[%clk 0:02:45.9]} 16... h4 {[%clk
0:02:26.3]} 17. h3 {[%clk 0:02:38.8]} 17... Qb6 {[%clk 0:02:21.8]} 18. Bd3
{[%clk 0:02:27.7]} 18... Nf6 {[%clk 0:02:19.1]} 19. e5 {[%clk 0:02:05.4]} 19...
Nh5 {[%clk 0:02:17.6]} 20. Kh2 {[%clk 0:02:00.3]} 20... Ng3 {[%clk 0:02:11.6]}
21. Rg1 {[%clk 0:01:59.7]} 21... dxe5 {[%clk 0:02:08.6]} 22. fxe5 {[%clk
0:02:00.3]} 22... Qd4 {[%clk 0:02:07.3]} 23. Re1 {[%clk 0:01:44.4]} 23... Rad8
{[%clk 0:01:59.8]} 24. Bb1 {[%clk 0:01:37.4]} 24... Qf4 {[%clk 0:01:58.5]} 25.
Qg4 {[%clk 0:01:21.6]} 25... Rd2 {[%clk 0:01:26.6]} 26. Nd5 {[%clk 0:01:15.5]}
26... Nf1+ {[%clk 0:01:24.1]} 27. Kg1 {[%clk 0:01:12.7]} 27... Qh2+ {[%clk
0:01:22.5]} 28. Kxf1 {[%clk 0:01:13.4]} 28... Qh1# {[%clk 0:01:21.8]} 0-1

[Event "Late-Titled-Tuesday-Blitz-March-19-2024"]
[Site "Chess.com"]
[Date "2024.03.19"]
[Round "1"]
[White "ChessBrainiacOnTwitch"]
[Black "Vse_po_kaify"]
[Result "1-0"]
[WhiteElo "2820"]
[BlackElo "2489"]
[TimeControl "180+1"]
[EndTime "14:04:41 PDT"]
[Termination "ChessBrainiacOnTwitch won by resignation"]

1. e4 {[%clk 0:03:00.9]} 1... e5 {[%clk 0:02:59.3]} 2. Nf3 {[%clk 0:02:57.5]}
2... Nc6 {[%clk 0:02:59.2]} 3. Nc3 {[%clk 0:02:51.9]} 3... Nf6 {[%clk
0:02:58.1]} 4. a3 {[%clk 0:02:52.3]} 4... a6 {[%clk 0:02:56]} 5. d4 {[%clk
0:02:50.2]} 5... exd4 {[%clk 0:02:54.8]} 6. Nxd4 {[%clk 0:02:51.1]} 6... Nxd4
{[%clk 0:02:18.3]} 7. Qxd4 {[%clk 0:02:52]} 7... b6 {[%clk 0:02:18]} 8. e5
{[%clk 0:02:49]} 8... Bc5 {[%clk 0:02:11]} 9. Qf4 {[%clk 0:02:39]} 9... Ng8
{[%clk 0:01:52.9]} 10. Bc4 {[%clk 0:02:38.3]} 10... Nh6 {[%clk 0:01:44]} 11. Qe4
{[%clk 0:02:23.8]} 11... Rb8 {[%clk 0:01:37.3]} 12. Bxh6 {[%clk 0:02:20.8]}
12... gxh6 {[%clk 0:01:38.2]} 13. Nd5 {[%clk 0:02:19.7]} 13... Bb7 {[%clk
0:01:36.1]} 14. O-O-O {[%clk 0:02:10.8]} 14... Qg5+ {[%clk 0:01:33.4]} 15. f4
{[%clk 0:02:07.2]} 15... Bxd5 {[%clk 0:01:18]} 16. Bxd5 {[%clk 0:01:44.5]} 16...
Qg6 {[%clk 0:01:17.9]} 17. f5 {[%clk 0:01:40.7]} 17... Qg5+ {[%clk 0:01:17.8]}
18. Kb1 {[%clk 0:01:41.1]} 18... Qe3 {[%clk 0:01:17.9]} 19. Bxf7+ {[%clk
0:01:30.8]} 19... Kxf7 {[%clk 0:01:15.6]} 20. Rxd7+ {[%clk 0:01:31]} 20... Kf8
{[%clk 0:00:58.5]} 21. Qd5 {[%clk 0:01:30.9]} 1-0

[Event "Late-Titled-Tuesday-Blitz-March-19-2024"]
[Site "Chess.com"]
[Date "2024.03.19"]
[Round "1"]
[White "Beca95"]
[Black "chucksterf10"]
[Result "0-1"]
[WhiteElo "2953"]
[BlackElo "2556"]
[TimeControl "180+1"]
[EndTime "14:04:44 PDT"]
[Termination "chucksterf10 won by resignation"]

1. d4 {[%clk 0:02:56.2]} 1... d5 {[%clk 0:02:59.5]} 2. c4 {[%clk 0:02:52.9]}
2... c6 {[%clk 0:02:59.8]} 3. Nf3 {[%clk 0:02:52.8]} 3... Nf6 {[%clk 0:02:59.5]}
4. Nc3 {[%clk 0:02:52.9]} 4... e6 {[%clk 0:02:59.3]} 5. Bg5 {[%clk 0:02:52.7]}
5... Nbd7 {[%clk 0:02:58.7]} 6. e3 {[%clk 0:02:52.6]} 6... h6 {[%clk 0:02:58.8]}
7. Bh4 {[%clk 0:02:52.7]} 7... Be7 {[%clk 0:02:59.3]} 8. Qc2 {[%clk 0:02:52.4]}
8... O-O {[%clk 0:02:58.9]} 9. O-O-O {[%clk 0:02:52.3]} 9... b6 {[%clk
0:02:59.3]} 10. Rg1 {[%clk 0:02:52.3]} 10... c5 {[%clk 0:02:44]} 11. g4 {[%clk
0:02:52]} 11... cxd4 {[%clk 0:02:41.1]} 12. Nxd4 {[%clk 0:02:51.8]} 12... Ne5
{[%clk 0:02:37.4]} 13. g5 {[%clk 0:02:49.2]} 13... hxg5 {[%clk 0:02:37.6]} 14.
Bxg5 {[%clk 0:02:49.1]} 14... Ba6 {[%clk 0:02:34.1]} 15. f4 {[%clk 0:01:59.9]}
15... Nxc4 {[%clk 0:02:31.9]} 16. Bxc4 {[%clk 0:01:59.5]} 16... Bxc4 {[%clk
0:02:31.7]} 17. Bh6 {[%clk 0:01:58.9]} 17... Ne8 {[%clk 0:02:18.2]} 18. Bxg7
{[%clk 0:01:55.7]} 18... Nxg7 {[%clk 0:02:16.3]} 19. Rxg7+ {[%clk 0:01:55.2]}
19... Kxg7 {[%clk 0:02:16.9]} 20. Rg1+ {[%clk 0:01:55]} 20... Kh6 {[%clk
0:01:26.2]} 21. Nxe6 {[%clk 0:01:54.3]} 21... Rg8 {[%clk 0:01:22.1]} 22. Nxd8
{[%clk 0:01:37]} 22... Rxg1+ {[%clk 0:01:21.7]} 23. Nd1 {[%clk 0:01:37.1]} 23...
Rxd8 {[%clk 0:01:17.2]} 24. Qf2 {[%clk 0:01:24.4]} 24... Rdg8 {[%clk 0:01:08.9]}
0-1

[Event "Late-Titled-Tuesday-Blitz-March-19-2024"]
[Site "Chess.com"]
[Date "2024.03.19"]
[Round "1"]
[White "IngOscarArdila"]
[Black "mac0504"]
[Result "0-1"]
[WhiteElo "2402"]
[BlackElo "2723"]
[TimeControl "180+1"]
[EndTime "14:04:53 PDT"]
[Termination "mac0504 won by resignation"]

1. d4 {[%clk 0:02:59.8]} 1... b6 {[%clk 0:02:57.1]} 2. c4 {[%clk 0:02:59.9]}
2... e6 {[%clk 0:02:57.2]} 3. Nf3 {[%clk 0:03:00.2]} 3... Bb7 {[%clk 0:02:57.8]}
4. e3 {[%clk 0:03:00.6]} 4... Nf6 {[%clk 0:02:58.2]} 5. Be2 {[%clk 0:03:00.8]}
5... Bb4+ {[%clk 0:02:58.6]} 6. Bd2 {[%clk 0:03:00.3]} 6... a5 {[%clk
0:02:58.8]} 7. O-O {[%clk 0:02:59.2]} 7... O-O {[%clk 0:02:59]} 8. Qc2 {[%clk
0:02:56.1]} 8... d6 {[%clk 0:02:55.5]} 9. Nc3 {[%clk 0:02:53.3]} 9... Nbd7
{[%clk 0:02:53.4]} 10. a3 {[%clk 0:02:53.3]} 10... Bxc3 {[%clk 0:02:53.6]} 11.
Bxc3 {[%clk 0:02:54.2]} 11... Ne4 {[%clk 0:02:54.2]} 12. Be1 {[%clk 0:02:53.3]}
12... a4 {[%clk 0:02:51.1]} 13. Nd2 {[%clk 0:02:53.2]} 13... f5 {[%clk
0:02:47.9]} 14. Nxe4 {[%clk 0:02:49]} 14... Bxe4 {[%clk 0:02:47.4]} 15. Qd1
{[%clk 0:02:48.4]} 15... Qg5 {[%clk 0:02:44.8]} 16. Bf3 {[%clk 0:02:48.1]} 16...
Nf6 {[%clk 0:02:41.3]} 17. Bxe4 {[%clk 0:02:46]} 17... fxe4 {[%clk 0:02:38.2]}
18. h3 {[%clk 0:02:35.7]} 18... Nd7 {[%clk 0:02:31.9]} 19. Qg4 {[%clk
0:02:28.7]} 19... Qxg4 {[%clk 0:02:26.7]} 20. hxg4 {[%clk 0:02:29.6]} 20... Rf6
{[%clk 0:02:20.1]} 21. f3 {[%clk 0:02:29.7]} 21... Raf8 {[%clk 0:02:18.4]} 22.
Bh4 {[%clk 0:02:29.3]} 22... Rh6 {[%clk 0:02:17.1]} 23. Bg5 {[%clk 0:02:27.9]}
23... Rg6 {[%clk 0:02:17.6]} 24. Be7 {[%clk 0:02:26.6]} 24... Rf7 {[%clk
0:02:10.7]} 25. Bd8 {[%clk 0:02:26.6]} 25... exf3 {[%clk 0:02:04.6]} 26. gxf3
{[%clk 0:02:26.5]} 26... Nb8 {[%clk 0:01:53.7]} 27. Kg2 {[%clk 0:02:22.9]} 27...
h5 {[%clk 0:01:49.8]} 28. Kg3 {[%clk 0:02:17.9]} 28... Nc6 {[%clk 0:01:43.9]}
29. Bh4 {[%clk 0:02:14.6]} 29... Na5 {[%clk 0:01:42.2]} 30. Rac1 {[%clk
0:01:49.4]} 30... hxg4 {[%clk 0:01:39.6]} 31. fxg4 {[%clk 0:01:49.1]} 31... Rxf1
{[%clk 0:01:40.4]} 32. Rxf1 {[%clk 0:01:49.3]} 32... Nxc4 {[%clk 0:01:41.2]} 33.
Rc1 {[%clk 0:01:30.3]} 33... d5 {[%clk 0:01:39]} 34. Bd8 {[%clk 0:01:29.2]}
34... c6 {[%clk 0:01:22.2]} 35. Kf4 {[%clk 0:01:24.7]} 35... Nxb2 {[%clk
0:01:17.1]} 36. Rxc6 {[%clk 0:01:22.3]} 36... e5+ {[%clk 0:01:17.3]} 37. dxe5
{[%clk 0:01:21.2]} 37... Rxc6 {[%clk 0:01:18.2]} 0-1

[Event "Late-Titled-Tuesday-Blitz-March-19-2024"]
[Site "Chess.com"]
[Date "2024.03.19"]
[Round "1"]
[White "Eltaj_Safarli"]
[Black "ritanovikova"]
[Result "1-0"]
[WhiteElo "2609"]
[BlackElo "2220"]
[TimeControl "180+1"]
[EndTime "14:04:54 PDT"]
[Termination "Eltaj_Safarli won by resignation"]

1. e4 {[%clk 0:02:57.2]} 1... e5 {[%clk 0:02:59.2]} 2. Nf3 {[%clk 0:02:56.9]}
2... Nc6 {[%clk 0:02:57.8]} 3. Bb5 {[%clk 0:02:56.8]} 3... a6 {[%clk 0:02:57.2]}
4. Ba4 {[%clk 0:02:57]} 4... Nf6 {[%clk 0:02:57.1]} 5. Nc3 {[%clk 0:02:57.5]}
5... b5 {[%clk 0:02:47]} 6. Bb3 {[%clk 0:02:57.7]} 6... d6 {[%clk 0:02:45.6]} 7.
a4 {[%clk 0:02:55.4]} 7... b4 {[%clk 0:02:37.5]} 8. Nd5 {[%clk 0:02:55.5]} 8...
Bg4 {[%clk 0:02:16.5]} 9. c3 {[%clk 0:02:47.8]} 9... a5 {[%clk 0:01:53.3]} 10.
d4 {[%clk 0:02:43.6]} 10... Be7 {[%clk 0:01:31.9]} 11. h3 {[%clk 0:02:40.9]}
11... Bh5 {[%clk 0:01:28.4]} 12. Nxf6+ {[%clk 0:02:35.9]} 12... Bxf6 {[%clk
0:01:20.3]} 13. Bd5 {[%clk 0:02:36.1]} 13... Qd7 {[%clk 0:01:20.1]} 14. dxe5
{[%clk 0:02:28.8]} 14... dxe5 {[%clk 0:01:15.7]} 15. g4 {[%clk 0:02:23.7]} 15...
Bg6 {[%clk 0:01:13]} 16. Be3 {[%clk 0:02:22]} 16... O-O {[%clk 0:01:07.6]} 17.
h4 {[%clk 0:02:21.6]} 17... Qxg4 {[%clk 0:00:40.8]} 18. Rg1 {[%clk 0:02:04.7]}
18... Qd7 {[%clk 0:00:32]} 19. Ng5 {[%clk 0:02:05.1]} 19... Rad8 {[%clk
0:00:21.2]} 20. h5 {[%clk 0:02:02]} 20... Bxh5 {[%clk 0:00:17.1]} 21. Qxh5
{[%clk 0:02:01.2]} 21... Bxg5 {[%clk 0:00:14]} 22. Rxg5 {[%clk 0:02:02.1]} 22...
g6 {[%clk 0:00:13.1]} 23. Rxg6+ {[%clk 0:02:01.4]} 1-0

[Event "Late-Titled-Tuesday-Blitz-March-19-2024"]
[Site "Chess.com"]
[Date "2024.03.19"]
[Round "1"]
[White "bitter-cikolata"]
[Black "HamedWafa4"]
[Result "1-0"]
[WhiteElo "2509"]
[BlackElo "2821"]
[TimeControl "180+1"]
[EndTime "14:04:58 PDT"]
[Termination "bitter-cikolata won by resignation"]

1. e4 {[%clk 0:03:00.9]} 1... e5 {[%clk 0:02:57.6]} 2. Nf3 {[%clk 0:02:59.4]}
2... Nc6 {[%clk 0:02:58]} 3. Nc3 {[%clk 0:02:59.7]} 3... Nf6 {[%clk 0:02:58.2]}
4. a3 {[%clk 0:02:59.8]} 4... Bc5 {[%clk 0:02:55.2]} 5. Nxe5 {[%clk 0:02:59.3]}
5... O-O {[%clk 0:02:55.9]} 6. Nxc6 {[%clk 0:02:48.4]} 6... dxc6 {[%clk
0:02:56.8]} 7. Be2 {[%clk 0:02:48.9]} 7... Qd4 {[%clk 0:02:55.7]} 8. O-O {[%clk
0:02:46.9]} 8... Nxe4 {[%clk 0:02:56.2]} 9. Nxe4 {[%clk 0:02:45.7]} 9... Qxe4
{[%clk 0:02:57.1]} 10. Bf3 {[%clk 0:02:45.9]} 10... Qg6 {[%clk 0:02:54.6]} 11.
d4 {[%clk 0:02:43.9]} 11... Bd6 {[%clk 0:02:54.4]} 12. c3 {[%clk 0:02:43]} 12...
Bf5 {[%clk 0:02:52.9]} 13. Be3 {[%clk 0:02:38.3]} 13... Rfe8 {[%clk 0:02:51.8]}
14. Qd2 {[%clk 0:02:38.5]} 14... h6 {[%clk 0:02:49.1]} 15. Rfe1 {[%clk
0:02:36.5]} 15... a5 {[%clk 0:02:48.6]} 16. Bf4 {[%clk 0:02:36.3]} 16... a4
{[%clk 0:02:39.7]} 17. Bg3 {[%clk 0:02:28.7]} 17... Be6 {[%clk 0:02:16.9]} 18.
Re3 {[%clk 0:02:23]} 18... Be7 {[%clk 0:01:55.1]} 19. Be4 {[%clk 0:01:59]} 19...
f5 {[%clk 0:01:44.2]} 20. Bd3 {[%clk 0:01:52.1]} 20... Bg5 {[%clk 0:01:42.5]}
21. f4 {[%clk 0:01:50.8]} 21... Bf6 {[%clk 0:01:14.8]} 22. Rae1 {[%clk
0:01:49.5]} 22... Bf7 {[%clk 0:01:11]} 23. Qc2 {[%clk 0:01:49.2]} 23... Rxe3
{[%clk 0:01:07.5]} 24. Rxe3 {[%clk 0:01:50.1]} 24... Bb3 {[%clk 0:01:04]} 25.
Qb1 {[%clk 0:01:44]} 25... Re8 {[%clk 0:00:59.1]} 26. Bxf5 {[%clk 0:01:39.7]}
26... Qxf5 {[%clk 0:00:46.5]} 27. Rxe8+ {[%clk 0:01:37.8]} 1-0

[Event "Late-Titled-Tuesday-Blitz-March-19-2024"]
[Site "Chess.com"]
[Date "2024.03.19"]
[Round "1"]
[White "TigrVShlyape"]
[Black "SameerMujumdar"]
[Result "1-0"]
[WhiteElo "2935"]
[BlackElo "2527"]
[TimeControl "180+1"]
[EndTime "14:05:01 PDT"]
[Termination "TigrVShlyape won by resignation"]

1. e4 {[%clk 0:03:00.9]} 1... c6 {[%clk 0:02:59.8]} 2. d3 {[%clk 0:02:56]} 2...
d5 {[%clk 0:03:00.7]} 3. Nf3 {[%clk 0:02:56.3]} 3... dxe4 {[%clk 0:02:59.3]} 4.
dxe4 {[%clk 0:02:56.7]} 4... Qxd1+ {[%clk 0:03:00.1]} 5. Kxd1 {[%clk 0:02:57]}
5... Nf6 {[%clk 0:03:00.8]} 6. Nfd2 {[%clk 0:02:54.1]} 6... h5 {[%clk
0:03:01.3]} 7. Nc3 {[%clk 0:02:50.7]} 7... g5 {[%clk 0:02:46.2]} 8. f3 {[%clk
0:02:50.3]} 8... g4 {[%clk 0:02:44.9]} 9. f4 {[%clk 0:02:46.2]} 9... e6 {[%clk
0:02:39.5]} 10. e5 {[%clk 0:02:41.6]} 10... Nd5 {[%clk 0:02:38.7]} 11. Nde4
{[%clk 0:02:41.8]} 11... Nd7 {[%clk 0:02:32.6]} 12. Bd3 {[%clk 0:02:38.2]} 12...
Nxc3+ {[%clk 0:02:31.2]} 13. bxc3 {[%clk 0:02:34.8]} 13... Nc5 {[%clk
0:02:28.1]} 14. Nf6+ {[%clk 0:02:34.4]} 14... Kd8 {[%clk 0:02:27.1]} 15. a4
{[%clk 0:02:30.7]} 15... Kc7 {[%clk 0:02:25]} 16. a5 {[%clk 0:02:29.8]} 16...
Be7 {[%clk 0:02:23.5]} 17. Be3 {[%clk 0:02:28.9]} 17... Bd7 {[%clk 0:01:41.8]}
18. Ke2 {[%clk 0:02:27.6]} 18... Rad8 {[%clk 0:01:39.4]} 19. Rab1 {[%clk
0:02:02.3]} 19... Bc8 {[%clk 0:01:35.5]} 20. Ne4 {[%clk 0:02:00.5]} 20... Nxe4
{[%clk 0:01:24.5]} 21. Bxe4 {[%clk 0:02:00.2]} 21... c5 {[%clk 0:01:22.5]} 22.
c4 {[%clk 0:01:51.8]} 22... Kb8 {[%clk 0:01:00.5]} 23. Rb5 {[%clk 0:01:50.3]}
23... a6 {[%clk 0:00:56.9]} 24. Rxc5 {[%clk 0:01:45.3]} 24... Bxc5 {[%clk
0:00:56.5]} 25. Bxc5 {[%clk 0:01:45.5]} 25... Bd7 {[%clk 0:00:47.2]} 26. Rb1
{[%clk 0:01:44.6]} 26... Bc8 {[%clk 0:00:46]} 27. Bd6+ {[%clk 0:01:42.3]} 27...
Ka7 {[%clk 0:00:45]} 28. c5 {[%clk 0:01:42.6]} 28... h4 {[%clk 0:00:42.7]} 29.
Ke3 {[%clk 0:01:41.6]} 29... Rhe8 {[%clk 0:00:38.2]} 30. c6 {[%clk 0:01:41.6]}
30... bxc6 {[%clk 0:00:35.6]} 31. Bc5+ {[%clk 0:01:41.6]} 1-0